Cogmind - Beta 15 @@@ ROGUE MODE // 2025.06.17 @ 14:54:53 Player: Envian Result: Destroyed by D-53 Grenadier with Mini Grenade Launcher Performance ------------- Evolutions (0) 0 Regions Visited (2) 400 Robots Destroyed (31) 155 Value Destroyed (575) 575 Prototype IDs (0) 0 Alien Tech Used (0) 0 Bonus (0) 0 TOTAL SCORE: 1130 Bonus ------- None Cogmind --------- Core Integrity 0/250 Matter 267/300 Energy 62/100 System Corruption 0% Temperature Cool (0) Movement Core (400) Ox7 Location -10/Mines Parts ------- > --- POWER (1) -------- (None) > --- PROPULSION (2) --- (None) > --- UTILITY (2) ------ Improved Heat Sink Large Storage Unit > --- WEAPON (2) ------- Particle Gun > --- INVENTORY (15) --- Light Nuclear Core Light Treads Improved Heat Sink Weight Redist. System ECM Suite Hacking Suite Thief Drone Bay Stasis Trap (100%) Stasis Trap (100%) Stasis Trap (100%) Stasis Trap (100%) Stasis Trap (100%) Peak State ------------ > --- POWER ------------ Light Nuclear Core > --- PROPULSION ------- Light Treads Light Treads > --- UTILITY ---------- Improved Heat Sink Large Storage Unit > --- WEAPON ----------- Small Laser Rocket Launcher > --- INVENTORY -------- Light Nuclear Core Light Treads Improved Heat Sink Weight Redist. System ECM Suite Hacking Suite Thief Drone Bay Small Laser Particle Gun Stasis Trap Stasis Trap Stasis Trap Stasis Trap Stasis Trap [Rating: 14] Favorites ----------- Power Ion Engine Engine Ion Engine Power Core Light Nuclear Core Propulsion Light Treads Treads Light Treads Utility Large Storage Unit Device Improved Heat Sink Storage Large Storage Unit Protection Light Armor Plating Weapon Assault Rifle Energy Gun Small Laser Ballistic Gun Assault Rifle Launcher Rocket Launcher Build | -11 -10 -10 ------- Run | Yrd Mat Min Slots Evolved . | . . . Power . | . . . Propulsion . | . . . Utility . | . . . Weapon . | . . . Parts Attached 17 | 6 9 2 Power 2 | 1 1 . Engine 1 | 1 . . Core 1 | . 1 . Reactor . | . . . Propulsion 4 | 2 2 . Treads 4 | 2 2 . Leg . | . . . Wheel . | . . . Hover . | . . . Flight . | . . . Utility 4 | 1 3 . Device 1 | . 1 . Storage 2 | 1 1 . Processor . | . . . Hackware . | . . . Protection 1 | . 1 . Artifact . | . . . Weapon 7 | 2 3 2 Energy Gun 4 | . 3 1 Energy Cannon . | . . . Ballistic Gun 2 | 2 . . Ballistic Cannon . | . . . Launcher 1 | . . 1 Special Weapon . | . . . Impact Weapon . | . . . Slashing Weapon . | . . . Piercing Weapon . | . . . Special Melee Weapon . | . . . Unidentified Prototypes . | . . . Parts Lost 13 | . 7 6 Power 2 | . 1 1 Propulsion 4 | . 2 2 Utility 1 | . 1 . Weapon 6 | . 3 3 Highest Loss Streak 6 | . 3 6 To Critical Strikes . | . . . Average Backups 3 | . 4 7 Power . | . . 1 Propulsion . | . 1 1 Utility 2 | . 3 4 Weapon . | . . . Tool/Special . | . . . Unused Backups 7 | . . 7 Power 1 | . . 1 Propulsion 1 | . . 1 Utility 5 | . . 5 Weapon . | . . . Tool/Special . | . . . Average Slot Usage (%) 92 | . 91 99 Engine 6 | . 7 . Core 7 | . 6 13 Treads 27 | . 27 28 Device 6 | . 4 14 Storage 14 | . 14 14 Protection 1 | . 1 . Energy Gun 18 | . 15 28 Ballistic Gun 9 | . 12 . Peak Build Rating 14 | 6 12 14 Average Rating 8 | 5 8 12 On Entrance 6 | . 6 12 Naked Turns . | . . . Heaviest Build 32 | 14 32 28 Greatest Support 40 | 40 40 40 Greatest Overweight (x) . | . . . Average Overweight (x) . | . . . Largest Inventory Capacity 15 | 8 15 15 Average Capacity 12 | 7 13 15 Most Carried 14 | 5 8 14 Average Carried 4 | . 4 10 Final Capacity 15 | 8 15 15 Final Carried 12 | . 6 12 Class Distribution -------------------- 60% | Mutant 39% | Scavenger-Mutant Dominant Class ---------------- Mutant | -10/Materials Scavenger-Mutant | -10/Mines Resources | -11 -10 -10 ----------- Run | Yrd Mat Min Matter Collected 645 | 156 489 . Remotely . | . . . Salvage Created 1077 | . 994 83 Parts 68 | . 61 7 Haulers Intercepted 2 | . 2 . Recyclers Shooed 4 | . 4 . Parts Field Recycled . | . . . Retrieved Matter . | . . . Parts Self-Destructed . | . . . Prevented . | . . . Kills | -11 -10 -10 ------- Run | Yrd Mat Min Combat Hostiles Destroyed 15 | . 14 1 Guns 15 | . 14 1 Classes Destroyed 9 | . 9 . Worker 3 | . 3 . Builder 3 | . 1 2 Tunneler 1 | . 1 . Hauler 2 | . 2 . Recycler 3 | . 3 . Operator 2 | . 2 . Watcher 2 | . 2 . Swarmer 3 | . 3 . Grunt 12 | . 11 1 Best Kill Streak 7 | . 7 2 Combat Bots Only 4 | . 4 1 Max Kills in Single Turn 2 | . 2 1 Gunslinging . | . . . Exploded . | . . . Melee . | . . . Uniques/NPCs Destroyed . | . . . Combat | -11 -10 -10 -------- Run | Yrd Mat Min Hostile Shots Fired 128 | . 106 22 Missed 31 | . 27 4 Hits 97 | . 79 18 Projectile 97 | . 79 18 AOE 12 | . . 12 Damage Taken 1496 | . 930 566 Core 255 | . 133 122 Absorbed by Shields . | . . . Core Remaining (%) 100 | 100 . . Volleys Fired 102 | . 89 13 Largest 2 | . 2 2 Hottest 105 | . 80 105 Shots Fired 194 | . 171 23 Gun 191 | . 171 20 Cannon . | . . . Launcher 3 | . . 3 Special . | . . . Kinetic 110 | . 110 . Thermal 81 | . 61 20 Explosive 3 | . . 3 Electromagnetic . | . . . Robot Hit Streak 14 | . 14 7 Robot Miss Streak 7 | . 7 2 Penetration Max . | . . . Secondary Targets 6 | . 6 . Max Gunslinging Chain 1 | . 1 . Shots Hit Robots 127 | . 110 17 Core Hits 59 | . 49 10 Critical Kills . | . . . Critical Parts Destroyed . | . . . Critical Strikes . | . . . Melee Attacks . | . . . Impact . | . . . Slashing . | . . . Piercing . | . . . Sneak Attacks . | . . . Combat Hostiles . | . . . Follow-up Attacks . | . . . Damage Inflicted 1543 | . 1342 201 Guns 1503 | . 1339 164 Cannons . | . . . Explosions 37 | . . 37 Melee . | . . . Ramming 3 | . 3 . Kinetic 941 | . 941 . Thermal 562 | . 398 164 Explosive 37 | . . 37 Electromagnetic . | . . . Impact . | . . . Slashing . | . . . Piercing . | . . . Highest Corruption . | . . . Average Corruption . | . . . Corruption Purged . | . . . Corruption Blocked . | . . . Overload Shots . | . . . Overflow Damage . | . . . Projectiles . | . . . Explosions . | . . . Melee . | . . . Knockbacks . | . . . Impact . | . . . Kinetic . | . . . Secondary . | . . . Self-Inflicted Damage . | . . . Shots . | . . . Rammed 3 | . 3 . Targets Rammed 3 | . 3 . Kicked . | . . . Crushed . | . . . Highest Temperature 121 | . 121 6 Average Temperature 32 | . 33 3 Received Heat Transfer 513 | . 465 48 Siege Activations . | . . . Martial Activations . | . . . Shielding Activations . | . . . Robots Disrupted . | . . . Combat Hostiles . | . . . Robots Corrupted . | . . . Combat Hostiles . | . . . Parts Fried . | . . . Impact Corruptions . | . . . Robots Melted . | . . . Combat Hostiles . | . . . Parts Melted 5 | . 3 2 Heat Transferred 1300 | . 925 375 Parts Sabotaged . | . . . Parts Stolen . | . . . Parts Stripped . | . . . Power Chain Reactions . | . . . Alert | -11 -10 -10 ------- Run | Yrd Mat Min Maximum Alert Level . | . . . Low Security (%) 100 | 100 100 100 Level 1 . | . . . Level 2 . | . . . Level 3 . | . . . Level 4 . | . . . Level 5 . | . . . High Security . | . . . Max Security . | . . . Peak Influence 114 | . 114 20 Initial . | . . . Average 23 | . 39 1 Influence Increases 556 | . 507 49 Destroy 0b10 Robot/C 300 | . 280 20 Destroy 0b10 Robot/NC 80 | . 70 10 Destroy Leader 68 | . 68 . Successful Hack 42 | . 42 . Destroy Structure 21 | . 2 19 Lose Combat Pursuer 45 | . 45 . Influence Decreases 556 | . 507 49 Time Decay 475 | . 437 38 Lost Part 81 | . 70 11 Squads Dispatched 4 | . 4 . Investigation 2 | . 2 . Extermination . | . . . Reinforcement 2 | . 2 . Assault . | . . . Garrison . | . . . Intercept . | . . . Searches Triggered . | . . . Construction Impeded . | . . . Haulers Reinforced . | . . . Active Scanning Responses . | . . . Cargo Convoy Interrupts . | . . . Stealth | -11 -10 -10 --------- Run | Yrd Mat Min Distress Signals 2 | . 2 . Communications Jammed . | . . . Distress Signals . | . . . Times Spotted 28 | . 24 4 Peak Tracking Total 5 | . 5 2 Tactical Retreats 2 | . 2 . Traps | -11 -10 -10 ------- Run | Yrd Mat Min Traps Triggered 3 | . 3 . Indirectly . | . . . Trap Hack Attempts . | . . . Triggered . | . . . Disarmed . | . . . Reprogrammed . | . . . Reused . | . . . Traps Extracted . | . . . Installed . | . . . Triggered . | . . . Most Traps Carried 5 | . . 5 Machines | -11 -10 -10 ---------- Run | Yrd Mat Min Machines Disabled . | . . . Max in Single Turn . | . . . Machines Repaired . | . . . Machines Dismantled . | . . . Machines Sabotaged . | . . . Overloaded Fab Kills . | . . . Hacking | -11 -10 -10 --------- Run | Yrd Mat Min Machines Accessed 8 | . 7 1 Terminals 6 | . 6 . Fabricators . | . . . Repair Stations . | . . . Recycling Units 1 | . 1 . Scanalyzers . | . . . Garrison Access . | . . . Total Hacks 22 | . 21 1 Successful 13 | . 12 1 Failed 9 | . 9 . Catastrophic 1 | . 1 . Database Lockouts . | . . . Manual 19 | . 19 . Terminals 20 | . 20 . Fabricators . | . . . Repair Stations . | . . . Recycling Units 1 | . 1 . Scanalyzers . | . . . Garrison Access . | . . . Terminal Hacks 3 | . 2 1 Robot Analysis 1 | . 1 . Open Door 1 | . . 1 Branch Access Points 1 | . 1 . Fabricator Hacks . | . . . Repair Station Hacks . | . . . Recycling Unit Hacks 1 | . 1 . Report Inventory 1 | . 1 . Scanalyzer . | . . . Garrison Access Hacks . | . . . Unauthorized Hacks 9 | . 9 . Terminals 9 | . 9 . Assimilate 2 | . 2 . Botnet 5 | . 5 . Operators 2 | . 2 . Fabricators . | . . . Repair Stations . | . . . Recycling Units . | . . . Scanalyzers . | . . . Garrison Access . | . . . Data Cores Recovered . | . . . Used . | . . . Hacking Detections 6 | . 6 . Full Trace Events . | . . . Feedback Events . | . . . Feedback Blocked . | . . . Robot Schematics Acquired . | . . . Robots Built . | . . . Authchips . | . . . Time . | . . . Total Robot Build Rating . | . . . Part Schematics Acquired . | . . . Parts Built . | . . . Authchips . | . . . Time . | . . . Total Part Build Rating . | . . . Parts Repaired . | . . . Time . | . . . Parts Recycled . | . . . Recycled Matter . | . . . Retrieved Matter . | . . . Retrieved Components . | . . . Parts Scanalyzed . | . . . Part Schematics Acquired . | . . . Parts Damaged . | . . . Bothacking | -11 -10 -10 ------------ Run | Yrd Mat Min Used RIF Installer . | . . . Robots Hacked . | . . . Non-combat . | . . . Combat . | . . . Robot Hacks Applied . | . . . Relay Couplers Released . | . . . Fabnet Peak Effective % . | . . . Robots Rewired . | . . . Allies Hacked . | . . . Hacks Repelled . | . . . Allies | -11 -10 -10 -------- Run | Yrd Mat Min Total Allies . | . . . Largest Group . | . . . Highest-Rated Group . | . . . Highest-Rated Ally . | . . . Total Orders . | . . . Ally Attacks . | . . . Total Damage . | . . . Kills . | . . . Allies Corrupted . | . . . Allies Melted . | . . . Intel | -11 -10 -10 ------- Run | Yrd Mat Min Active Infowar (turns) . | . . . Robot Analysis Total 1 | . 1 . Derelict Logs Recovered 2 | . . 2 Drone Launches . | . . . Drone Recoveries . | . . . Exploration | -11 -10 -10 ------------- Run | Yrd Mat Min Turns Passed 2983 | 834 1742 407 Spaces Moved 1122 | 28 875 219 Core 14 | 14 . . Treads 1108 | 14 875 219 Legs . | . . . Wheels . | . . . Hover . | . . . Flight . | . . . Fastest Speed 50 | 50 160 160 Average Speed 158 | 105 160 160 Slowest Speed 160 | 160 160 160 Overloaded Moves . | . . . Propulsion Burnouts . | . . . Robots Hopped . | . . . Potential Cave-ins . | . . . Cave-ins Triggered . | . . . Exploration Rate (%) 56 | 5 96 69 Regions Visited 2 Branch Regions 1 Pre-discovered Areas . | . . . Known Exits Taken 1 | . 1 . Unknown Exits Taken 1 | 1 . . Scrap Searched . | . . . Spaces Dug . | . . . Terrain Destroyed 25 | . . 25 Melee . | . . . Projectile . | . . . AOE 25 | . . 25 Terrain Rammed . | . . . Walls Destroyed . | . . . Machines Disabled . | . . . Actions | -11 -10 -10 --------- Run | Yrd Mat Min Total 2128 | 832 1044 252 Wait 856 | 794 53 9 Move 1120 | 27 874 219 Hop . | . . . Pick Up 28 | 5 15 8 Fast Attach 1 | 1 . . Attach 15 | 5 8 2 Detach . | . . . Swap 2 | . 1 1 Drop 1 | . 1 . Fire 102 | . 89 13 Melee . | . . . Ram . | . . . Kick . | . . . Crush 3 | . 3 . Escape Stasis . | . . . Rewire . | . . . Trap . | . . . Miscellaneous . | . . . Route ------- -11/Scrapyard -10/Materials (discovered 5 exits: [*Mat x3] / *Min x2) -10/Mines (discovered 2 exits: [*Mat x2]) History --------- Turn | Location | Event 9 | -11/Scrapyard | Discovered new exit (range 16) 835 | -11/Scrapyard | Entered Materials 836 | -10/Materials | Build established: Mutant 836 | -10/Materials | Met a group of wandering Federalists 1444 | -10/Materials | Discovered new exit (range 5) 1466 | -10/Materials | Discovered new exit (range 14) 1588 | -10/Materials | Discovered new exit (range 15) 1661 | -10/Materials | Identified exit to Mines 1792 | -10/Materials | Core integrity fell below 50% 1807 | -10/Materials | Discovered new exit (range 15) 1817 | -10/Materials | Lost 3 parts (1p1n1w) 2080 | -10/Materials | Build established: Scavenger-Mutant 2577 | -10/Materials | Entered Mines 2581 | -10/Mines | Discovered new exit (range 5) 2638 | -10/Mines | Learned Materials emergency access door positions 2700 | -10/Mines | Found a hidden stash of uninstalled traps 2727 | -10/Mines | Learned Materials stockpile data 2864 | -10/Mines | Found the Drone Emporium 2870 | -10/Mines | Found Prototype Device 2899 | -10/Mines | Discovered new exit (range 11) 2950 | -10/Mines | Received a Rocket Launcher from a helpful Derelict 2958 | -10/Mines | Assembled infested the area 2983 | -10/Mines | Core integrity fell below 20% 2984 | -10/Mines | Destroyed by D-53 Grenadier with Mini Grenade Launcher Last Messages --------------- 02948_ Q4-35G(g): "Need to get rid of a swarm? Done. Need a big hole in the wall? Done." 02949_ Q4-35G(g): "Need a small hole in the wall? Leave that to the mining laser wimps, I say!" 02950_ Q4-35G(g): "Would you like a rocket launcher? I know I would if I were you, so I'm going to lend you mine." 02950_ Q4-35G(g) slips back into the shadows. 02952_ Acquired Rocket Launcher. 02958_ ALERT: Infestation in the mines, dispatching Demolisher response squad. 02971_ C-30 ARC bursts open, deploying its payload. 02971_ D-53 Grenadier unfolds itself. 02974_ T-07 Excavator destroyed. 02975_ The unstable cave ceiling collapses. 02979_ Rocket Launcher destroyed. 02979_ Lgt. Nuclear Core destroyed. 02980_ Sml. Laser destroyed. 02980_ Lgt. Treads destroyed. 02983_ The unstable cave ceiling collapses. 02983_ Sml. Laser destroyed. Map ----- +----------------------------------------------------+ | # ##?????## ##??????????? | | # ##??????# < #??????????? | | # #### ##???????# #??????????? | | # #??## ##????????# ##?????????? | | # #???## #?????????## ####??????? | | # #????# #??????????# ##?????? | | ##???# #??????????# #?????? | | ###?# #??????????## #?????? | | ### ###?????????# ## ##?????? | | ## ????????## ##?###??????? | | ## ## ??????## ##???????????? | | ######### ????## ###????????????? | | ##???????# #?### ##??????????????? | | ###?????????# # ##???????????????? | | ?????????????# #???????????????? | | #????????????# ???????????????? | | ###??????????## % ???????????????? | | ##?????????? dd ???????????????? | | #??????????? ???????????????? | | #???????????# ???????????????? | | #????????## #####?#####?????? | | #??????????# ## ##????? | | ###### ?????????## ##???? | | #??????### ?????????# #???? | | #???????????????????# #???? | | # ##???????????????# @ #????? | | #???????????????# ####????? | | #???????????????# ##???????? | | ##???????????????## ###????????? | | ##?????????????????## ##??????????? | | ###???????????????????# #####???????????? | | ?????????????????????? ???????????????? | | ?????????????????????? ##???????????????? | | ?????????????????????# ?????????????????? | | ?????????????????????# ?????????????????? | | ?????????????????????# ?????????????????? | | ?????????????????????# ?????????????????? | | ?????????????????????#??????????????????? | | ????????????????????????????????????????? | | ????????????????????????????????????????? | | ????????????????????????????????????????? | | ????????????????????????????????????????? | | ????????????????????????????????????????? | | ????????????????????????????????????????? | | ????????????????????????????????????????? | | ????????????????????????????????????????? | | ????????????????????????????????????????? | | ????????????????????????????????????????? | | ????????????????????????????????????????? | | ????????????????????????????????????????? | +----------------------------------------------------+ Best States ------------- Heat Dissipation 39 Energy Generation 14 Energy Capacity 250 Matter Stores 300 Matter Capacity 300 Sight Range 16 Terrain Scan Density 10 Armor Coverage 150 Evasion (%) 50 Recoil Reduction 2 Item Schematics ----------------- None Robot Schematics ------------------ None Fabricated ------------ Nothing Repaired ---------- Nothing Alien Tech Used ----------------- None Achievements -------------- None Challenges ------------ None Game ------ Seed MiniSuperquantumSplitter Manual? 0 Play Time 00:21:26 Cumulative 36.5 hours Start 2025.06.17 @ 14:23:14 End 2025.06.17 @ 14:54:53 Sessions 1 Manual Loads 0 Difficulty Rogue Special Mode None Game No. 46 Rogue 46 Adventurer 0 Explorer 0 Win Type - Total 1 Types 1/0/0/0/0/0/0/0/0/0 Lore% 18 Gallery% 27 Achievement% 32 Wizard Run 0 Options --------- Layout 0 ASCII 0 Keyboard 0 Movement Numpad Keybinds 0 Fullscreen 1 Font 24/Smallcaps Map View 76x50 Zoom Use 0% Tactical HUD 1 Map Filters NONE Filters NONE Steam 1 RUN: 6ef9df0b-ec75-435f-b83b-fe2a0d346168